Cogmind - Beta 9.3 @@@ ROGUE MODE // 2019.12.21 @ 16:45:28 // Winter2019/RPGLIKE Player: Cassie Rose Result: Destroyed by Y-45 Defender with Beam Rifle Performance ------------- Evolutions (1) 500 Regions Visited (2) 400 Robots Destroyed (30) 150 Value Destroyed (423) 423 Prototype IDs (0) 0 Alien Tech Used (0) 0 Bonus (0) 0 TOTAL SCORE: 1473 Bonus ------- None Cogmind --------- Core Integrity 0/650 Matter 300/300 Energy 149/150 System Corruption 0% Temperature Cool (9) Movement Flying (34) Location -9/Materials Parts ------- > --- POWER (2) -------- Light Ion Engine Light Ion Engine > --- PROPULSION (3) --- Flight Unit Flight Unit VTOL Module > --- UTILITY (2) ------ Advanced Terrain Scanner Seismic Analyzer > --- WEAPON (4) ------- Maul Maul Maul Maul > --- INVENTORY (0) ---- (None) Peak State ------------ > --- POWER ------------ Light Ion Engine Light Ion Engine > --- PROPULSION ------- Flight Unit Flight Unit VTOL Module > --- UTILITY ---------- Advanced Terrain Scanner Seismic Analyzer > --- WEAPON ----------- Maul Maul Maul Maul > --- INVENTORY -------- (None) [Rating: 18] Favorites ----------- Power Light Ion Engine Engine Light Ion Engine Propulsion Flight Unit Wheel Compact Wheel Flight Unit Flight Unit Utility Seismic Analyzer Device Improved Terrain Scanner Processor Seismic Analyzer Weapon Maul Energy Gun EM Pulse Gun Ballistic Gun Light Assault Rifle Impact Weapon Maul Build | -11 -10 -9 ------- Run | Scr Mat Mat Slots Evolved 7 | 5 1 1 Power 1 | 1 . . Propulsion 2 | 1 . 1 Utility 1 | 1 . . Weapon 3 | 2 1 . Parts Attached 22 | 9 8 5 Power 6 | 2 2 2 Engine 6 | 2 2 2 Core . | . . . Reactor . | . . . Propulsion 6 | 2 2 2 Treads . | . . . Leg . | . . . Wheel 2 | 2 . . Hover . | . . . Flight 4 | . 2 2 Utility 3 | 2 . 1 Device 2 | 1 . 1 Storage . | . . . Processor 1 | 1 . . Hackware . | . . . Protection . | . . . Artifact . | . . . Weapon 7 | 3 4 . Energy Gun 1 | 1 . . Energy Cannon . | . . . Ballistic Gun 2 | 2 . . Ballistic Cannon . | . . . Launcher . | . . . Special Weapon . | . . . Impact Weapon 4 | . 4 . Slashing Weapon . | . . . Piercing Weapon . | . . . Special Melee Weapon . | . . . Unidentified Prototypes . | . . . Parts Lost . | . . . Power . | . . . Propulsion . | . . . Utility . | . . . Weapon . | . . . Highest Loss Streak . | . . . Average Slot Usage (%) 98 | . 99 93 Engine 20 | . 21 18 Wheel 7 | . 8 . Flight 13 | . 12 20 Device 10 | . 10 9 Processor 10 | . 10 9 Impact Weapon 34 | . 34 36 Naked Turns . | . . . Heaviest Build 19 | 14 19 19 Greatest Support 37 | 37 37 33 Greatest Overweight (x) 1 | . 1 1 Average Overweight (x) . | . . . Largest Inventory Capacity . | . . . Average Capacity . | . . . Most Carried . | . . . Average Carried . | . . . Final Capacity . | . . . Final Carried . | . . . Class Distribution -------------------- 60% | Scavenger-Mutant 30% | Mutant 8% | Skirmisher Dominant Class ---------------- Scavenger-Mutant | -10/Materials Scavenger-Mutant | -9/Materials Resources | -11 -10 -9 ----------- Run | Scr Mat Mat Matter Collected 448 | 308 80 60 Remotely . | . . . Salvage Created 666 | 105 404 157 Parts 35 | 10 18 7 Haulers Intercepted 3 | . 2 1 Recyclers Shooed 1 | 1 . . Parts Field Recycled . | . . . Retrieved Matter . | . . . Parts Self-Destructed . | . . . Prevented . | . . . Kills | -11 -10 -9 ------- Run | Scr Mat Mat Combat Hostiles Destroyed 20 | . 13 7 Melee 11 | . 6 5 Classes Destroyed 7 | 2 5 . Tunneler 2 | 2 . . Hauler 3 | . 2 1 Recycler 1 | 1 . . Operator 1 | . 1 . Watcher 3 | . 3 . Swarmer 15 | . 9 6 Grunt 5 | . 4 1 Best Kill Streak 4 | 3 4 3 Combat Bots Only 4 | . 4 3 Max Kills in Single Turn 1 | 1 1 1 Gunslinging . | . . . Exploded . | . . . Melee 1 | . 1 1 Uniques/NPCs Destroyed . | . . . Combat | -11 -10 -9 -------- Run | Scr Mat Mat Damage Taken 1536 | . 983 553 Core 1281 | . 823 458 Absorbed by Shields . | . . . Redirected to Core 781 | . 500 281 Core Remaining (%) 69 | 100 38 . Volleys Fired 7 | 7 . . Largest 3 | 3 . . Hottest 80 | 80 . . Shots Fired 21 | 21 . . Gun 21 | 21 . . Cannon . | . . . Launcher . | . . . Special . | . . . Kinetic 14 | 14 . . Thermal . | . . . Explosive . | . . . Electromagnetic 7 | 7 . . Robot Hit Streak 5 | 5 . . Robot Miss Streak 2 | 2 . . Penetration Max . | . . . Secondary Targets . | . . . Shots Hit Robots 70 | 12 39 19 Core Hits 17 | 4 8 5 Critical Hits . | . . . Critical Kills . | . . . Critical Parts Destroyed . | . . . Melee Attacks 99 | . 59 40 Impact 99 | . 59 40 Slashing . | . . . Piercing . | . . . Sneak Attacks 7 | . 5 2 Combat Hostiles 2 | . 2 . Follow-up Attacks 27 | . 13 14 Damage Inflicted 1945 | 75 1208 662 Guns 75 | 75 . . Cannons . | . . . Explosions . | . . . Melee 1870 | . 1208 662 Ramming . | . . . Kinetic 38 | 38 . . Thermal . | . . . Explosive . | . . . Electromagnetic 37 | 37 . . Impact 1870 | . 1208 662 Slashing . | . . . Piercing . | . . . Highest Corruption . | . . . Average Corruption . | . . . Corruption Purged . | . . . Overload Shots . | . . . Overflow Damage 405 | . 219 186 Projectiles . | . . . Explosions . | . . . Melee 405 | . 219 186 Knockbacks 6 | . 4 2 Impact 6 | . 4 2 Kinetic . | . . . Secondary . | . . . Self-Inflicted Damage . | . . . Shots . | . . . Rammed . | . . . Targets Rammed . | . . . Kicked . | . . . Crushed . | . . . Highest Temperature 99 | 99 . 7 Average Temperature 31 | 34 . 4 Received Heat Transfer 300 | . 168 132 Siege Activations . | . . . Robots Corrupted . | . . . Combat Hostiles . | . . . Parts Fried 22 | . 18 4 Impact Corruptions 21 | . 15 6 Robots Melted . | . . . Combat Hostiles . | . . . Parts Melted . | . . . Heat Transferred . | . . . Parts Sabotaged . | . . . Parts Stolen . | . . . Parts Stripped . | . . . Power Chain Reactions . | . . . Missiles Intercepted . | . . . Alert | -11 -10 -9 ------- Run | Scr Mat Mat Peak Influence 296 | 15 244 296 Average Influence 99 | 5 99 152 Maximum Alert Level 1 | . 1 1 Low Security (%) 91 | 100 94 70 Level 1 8 | . 5 29 Level 2 . | . . . Level 3 . | . . . Level 4 . | . . . Level 5 . | . . . High Security . | . . . Max Security . | . . . Squads Dispatched 3 | . 2 1 Investigation 1 | . 1 . Extermination . | . . . Reinforcement 2 | . 1 1 Assault . | . . . Garrison . | . . . Intercept . | . . . Construction Impeded . | . . . Haulers Reinforced . | . . . Stealth | -11 -10 -9 --------- Run | Scr Mat Mat Distress Signals 3 | . 1 2 Communications Jammed . | . . . Distress Signals . | . . . Times Spotted 32 | . 17 15 Peak Tracking Total 7 | . 4 7 Tactical Retreats . | . . . Traps | -11 -10 -9 ------- Run | Scr Mat Mat Traps Triggered 1 | . 1 . Indirectly . | . . . Trap Hack Attempts . | . . . Triggered . | . . . Disarmed . | . . . Reprogrammed . | . . . Reused . | . . . Traps Extracted . | . . . Installed . | . . . Triggered . | . . . Machines | -11 -10 -9 ---------- Run | Scr Mat Mat Machines Disabled . | . . . Max in Single Turn . | . . . Machines Sabotaged . | . . . Garrisons Compromised . | . . . Overloaded Fab Kills . | . . . Fab Network Shutdowns . | . . . Hacking | -11 -10 -9 --------- Run | Scr Mat Mat Machines Accessed . | . . . Terminals . | . . . Fabricators . | . . . Repair Stations . | . . . Recycling Units . | . . . Scanalyzers . | . . . Garrison Access . | . . . Total Hacks . | . . . Successful . | . . . Failed . | . . . Catastrophic . | . . . Database Lockouts . | . . . Manual . | . . . Terminals . | . . . Fabricators . | . . . Repair Stations . | . . . Recycling Units . | . . . Scanalyzers . | . . . Garrison Access . | . . . Terminal Hacks . | . . . Fabricator Hacks . | . . . Repair Station Hacks . | . . . Recycling Unit Hacks . | . . . Scanalyzer . | . . . Garrison Access Hacks . | . . . Unauthorized Hacks . | . . . Terminals . | . . . Fabricators . | . . . Repair Stations . | . . . Recycling Units . | . . . Scanalyzers . | . . . Garrison Access . | . . . Data Cores Recovered . | . . . Used . | . . . Hacking Detections . | . . . Full Trace Events . | . . . Feedback Events . | . . . Feedback Blocked . | . . . Robot Schematics Acquired . | . . . Robots Built . | . . . Matter . | . . . Time . | . . . Total Robot Build Rating . | . . . Part Schematics Acquired . | . . . Parts Built . | . . . Matter . | . . . Time . | . . . Total Part Build Rating . | . . . Parts Repaired . | . . . Time . | . . . Parts Recycled . | . . . Recycled Matter . | . . . Retrieved Matter . | . . . Retrieved Components . | . . . Parts Scanalyzed . | . . . Part Schematics Acquired . | . . . Parts Damaged . | . . . Bothacking | -11 -10 -9 ------------ Run | Scr Mat Mat Used RIF Installer . | . . . Robots Hacked . | . . . Non-combat . | . . . Combat . | . . . Robot Hacks Applied . | . . . Relay Couplers Released . | . . . Robots Rewired . | . . . Allies Hacked . | . . . Hacks Repelled . | . . . Allies | -11 -10 -9 -------- Run | Scr Mat Mat Total Allies . | . . . Largest Group . | . . . Highest-Rated Group . | . . . Highest-Rated Ally . | . . . Total Orders . | . . . Ally Attacks . | . . . Total Damage . | . . . Kills . | . . . Allies Corrupted . | . . . Allies Melted . | . . . Intel | -11 -10 -9 ------- Run | Scr Mat Mat Robot Analysis Total . | . . . Derelict Logs Recovered . | . . . Drone Launches . | . . . Drone Recoveries . | . . . Exploration | -11 -10 -9 ------------- Run | Scr Mat Mat Turns Passed 1406 | 113 1089 204 Spaces Moved 1112 | 70 801 241 Core 1 | 1 . . Treads . | . . . Legs . | . . . Wheels 328 | 69 259 . Hover . | . . . Flight 783 | . 542 241 Fastest Speed 34 | 50 37 34 Average Speed 91 | 99 107 38 Slowest Speed 125 | 100 125 117 Overloaded Moves . | . . . Propulsion Burnouts . | . . . Robots Hopped . | . . . Cave-ins Triggered . | . . . Exploration Rate (%) 42 | 5 97 25 Regions Visited 2 Branch Regions . Pre-discovered Areas . | . . . Known Exits Taken . | . . . Unknown Exits Taken 2 | 1 1 . Scrap Searched . | . . . Spaces Dug . | . . . Terrain Destroyed . | . . . Melee . | . . . Projectile . | . . . AOE . | . . . Actions | -11 -10 -9 --------- Run | Scr Mat Mat Total 1336 | 94 940 302 Wait 91 | 9 61 21 Move 1110 | 69 800 241 Hop . | . . . Pick Up . | . . . Fast Attach 16 | 9 6 1 Attach . | . . . Detach . | . . . Swap 6 | . 2 4 Drop 11 | . 7 4 Fire 7 | 7 . . Melee 64 | . 42 22 Ram . | . . . Kick . | . . . Crush . | . . . Escape Stasis . | . . . Rewire . | . . . Trap . | . . . Miscellaneous 31 | . 22 9 Route ------- -11/Scrapyard -10/Materials (discovered 5 exits: [*Mat x3] / [*Min x2]) -9/Materials (discovered 1 exit: [*Min]) History --------- Turn | Location | Event 8 | -11/Scrapyard | Upgraded with Power slot (x1) 8 | -11/Scrapyard | Upgraded with Propulsion slot (x1) 8 | -11/Scrapyard | Upgraded with Utility slot (x1) 8 | -11/Scrapyard | Upgraded with Weapon slot (x2) 25 | -11/Scrapyard | Discovered new exit (range 15) 114 | -11/Scrapyard | Entered Materials 237 | -10/Materials | Discovered new exit (range 4) 253 | -10/Materials | Discovered new exit (range 14) 324 | -10/Materials | Core integrity fell below 50% 431 | -10/Materials | Build established: Mutant 734 | -10/Materials | Discovered new exit (range 8) 831 | -10/Materials | Discovered new exit (range 11) 853 | -10/Materials | Build established: Scavenger-Mutant 877 | -10/Materials | Reached level 2 904 | -10/Materials | Upgraded with Weapon slot (x1) 972 | -10/Materials | Discovered new exit (range 15) 1203 | -10/Materials | Entered another Materials area 1204 | -9/Materials | Core integrity fell below 50% 1205 | -9/Materials | Reached level 3 1211 | -9/Materials | Upgraded with Propulsion slot (x1) 1363 | -9/Materials | Discovered new exit (range 12) 1376 | -9/Materials | Core integrity fell below 20% 1407 | -9/Materials | Destroyed by Y-45 Defender with Beam Rifle Last Messages --------------- 01376_ K-01 Serf collects debris. 01378_ S-10 Pest IFF system glitched. 01379_ K-01 Serf collects debris. 01381_ W-16 Scout sends out distress signal. 01382_ Maul follow-up attack on S-10 Pest. 01383_ K-01 Serf collects debris. 01386_ S-10 Pest destroyed. 01386_ Maul follow-up attack on W-16 Scout. 01386_ K-01 Serf collects debris. 01390_ Used Protomatter to restore core integrity (+30, depleted) 01392_ Used Protomatter to restore core integrity (+42, depleted) 01393_ K-01 Serf collects debris. 01394_ Dropped Flight Unit. 01396_ K-01 Serf collects debris. 01396_ G-34 Mercenary destroyed. 01399_ K-01 Serf collects debris. 01400_ Acquired 20 matter. 01402_ K-01 Serf collects debris. 01406_ Maul follow-up attack on G-34 Mercenary. 01406_ R-06 Scavenger collects Aluminum Leg. Map ----- +----------------------------------------------------+ | ??????????????????????? ?? ? #?"????????????? | | ?????????????????????? ? ? ?????????????? | | ??????????????????? ? ? ???? ? ? ? ?#??????? | | ????????????????????#?#+??###?# #??##?#?# #????? | | ???????????????? ? # ?### ###?##?????#???? | | ?????????????????? # ? ?#" #??#?? ? ?#??#? | | ???????????????? ? # """ #?" #???#?? ##??? | | ????????????? ?# ? # "?? # | #???#?? #?#?? | | ???????????????#?? # """ #?" < ##### ? ????? | | ??????????????#? ???# ? ?# ####?? ???##? | | ????????????#?## ? ??##??#?#?" ##??##? ?? ??? | | ????????????????? ??##?###?" ???#?? ? ?? ? | | ????????????#?##? ##?#??##### ###?##? ""?? ? | | ????????? ? ?##?##### ? ? # ####### """" | | ?????????????# ?? # ?? ? ??+ ! """" | | ????????? # ## ?? # ? # ? | | ????????? ???# ? ? # u ? ? | | ????????????#? ? #?####?#### Y#??#?####### ? | | ??????#???? ?#? ?########### #?#?######?? ? | | ???????#?#??######+## = %##########?####/ | | ?????#???## k r%* * # ###? | | ??????#???# ?#####+## [ !!! # #?# | | ???????##?? ##? ?? # !!! # ###? " | | ?????????#????? ?# "T" !! # ### " | | ?????????##???# ? "?# """ Y# ### ? | | ?????? ?? ? ?+? T?# @g + !###? | | ??????? ??? ??? ??"?# t # !!####### | | ???????? ????? # ###+####+## !%+ | | ??????????#?????##+?# # ? ## [[####### | | ??????#? ?? ? ? ? # ? "?? ?################# | | ??????#????? ? # #???""" ######## """ ### | | ???????????" ??+ # """ ######?# "R" *### | | ??????? ?"?" ? ###+###### ? ######## " " ### | | ???????????????#?? ?#???? ?? ######## ]+ | | ????????? ??? ?? ???T ###? "T" #?###### ### | | ?????????????? ?? ? ??## """ ######?# #?# | | ????????????????????????#? ##########+##### | | ????????????????? ?? ##?#?#?############### | | ???????????#???????? ?##?####?############## | | ????????????????#?#? ##?????###?##?######### ## | | ?????????????#????#?#????????###??#####?#### ## | | ?????????????????#????????##?##?##?######?## ## | | ???????????????????????#?#?#?###?#######?### ## | | ????????????????????#????#?##?#####?##?##### #! | | ??????????????????????????#?#########?###### #! | | ??????????????????????????????####?######### # | | ????????????????????????#?#########?##?##### # | | ?????????????????????????###########?#######+# | | ????????????????????????#???###??###?## !! # | | ???????????????????????#??##?#?#?###### !! # | +----------------------------------------------------+ Best States ------------- Heat Dissipation 25 Energy Generation 15 Energy Capacity 275 Matter Stores 300 Matter Capacity 300 Sight Range 16 Robot Scan Range 6 Terrain Scan Range 20 Terrain Scan Density 160 Evasion (%) 63 Item Schematics ----------------- None Robot Schematics ------------------ None Fabricated ------------ Nothing Alien Tech Used ----------------- None Achievements -------------- None Challenges ------------ None RPGLIKE | -11 -10 -9 --------- Run | Scr Mat Mat Levels Raised 2 | . 1 1 XP Earned 7110 | 3000 1775 2335 XP Spent 6000 | 3000 1300 1700 Upgrades 16 | 8 2 6 Power Slot 1 | 1 . . Propulsion Slot 2 | 1 . 1 Utility Slot 1 | 1 . . Weapon Slot 3 | 2 1 . Core Integrity 1 | . . 1 Mass Support 4 | 1 1 2 Sensor Range 3 | 1 . 2 Terrain Scan Density 1 | 1 . . Protomatter Created 224 | . 165 59 Integrity Restored 630 | . 453 177 Core 630 | . 453 177 Protomatter Decayed 14 | . 14 . Game ------ Seed IntegrityWeightChronowheel Manual? 0 Play Time 00:16:52 Cumulative 76.6 hours Start 2019.12.21 @ 16:28:43 End 2019.12.21 @ 16:45:28 Sessions 1 Manual Loads 0 Difficulty Rogue Special Mode Winter2019/RPGLIKE Game No. 126 Rogue 126 Adventurer 0 Explorer 0 Win Type - Total 0 Types 0/0/0/0/0/0/0 Lore% 22 Gallery% 28 Achievement% 27 Wizard Run 0 Options --------- ASCII 0 Keyboard 0 Movement Mouse Keybinds 0 Fullscreen 2 Font 18/SmallcapsGlow Map View 76x50 Tactical HUD 1 Map Filters NONE Filters LOW_CONTRAST(13,24,33)|BRIGHTNESS(120)|SATURATION(80) Steam 1 RUN: aef07780-d692-4757-9d06-18030c9ed4e4